Workbook

Sheet Trim 01
B2: A | H2: B | N2: C | T2: D | Z2: BRAKES | AH2: A | AI2: B | AJ2: C | AK2: D
B3: factory | C3: LEFT | D3: RIGHT | E3: left | F3: right | G3: symet | H3: factory | I3: LEFT | J3: RIGHT | K3: left | L3: right | M3: symet. | N3: factory | O3: LEFT | P3: RIGHT | Q3: left | R3: dir. | S3: symet | T3: factory | U3: LEFT | V3: RIGHT | W3: left. | X3: right | Y3: symet | Z3: factory | AA3: LEFT | AB3: RIGHT | AC3: left. | AD3: right | AE3: symet
A4: 1 | B4: =AH4+$M$24 -> 7467 | E4: =C4-B4 -> -7467 | F4: =D4-B4 -> -7467 | G4: =C4-D4 -> 0 | H4: =AI4+$M$24 -> 7354.25 | K4: =I4-H4 -> -7354.25 | L4: =J4-H4 -> -7354.25 | M4: =I4-J4 -> 0 | N4: =AJ4+$M$24 -> 7424.5 | Q4: =O4-N4 -> -7424.5 | R4: =P4-N4 -> -7424.5 | S4: =O4-P4 -> 0 | T4: 7562 | W4: =U4-T4 -> -7562 | X4: =V4-T4 -> -7562 | Y4: =U4-V4 -> 0 | Z4: 7988.5 | AC4: =AA4-Z4 -> -7988.5 | AD4: =AB4-Z4 -> -7988.5 | AE4: =AA4-AB4 -> 0 | AH4: 7467 | AI4: 7354.25 | AJ4: 7424.5 | AK4: 7562
A5: 2 | B5: =AH5+$M$24 -> 7420.5 | E5: =C5-B5 -> -7420.5 | F5: =D5-B5 -> -7420.5 | G5: =C5-D5 -> 0 | H5: =AI5+$M$24 -> 7309.25 | K5: =I5-H5 -> -7309.25 | L5: =J5-H5 -> -7309.25 | M5: 0 | N5: =AJ5+$M$24 -> 7379 | Q5: =O5-N5 -> -7379 | R5: =P5-N5 -> -7379 | S5: =O5-P5 -> 0 | T5: 7521 | W5: =U5-T5 -> -7521 | X5: =V5-T5 -> -7521 | Y5: =U5-V5 -> 0 | Z5: 7734 | AC5: =AA5-Z5 -> -7734 | AD5: =AB5-Z5 -> -7734 | AE5: =AA5-AB5 -> 0 | AH5: 7420.5 | AI5: 7309.25 | AJ5: 7379 | AK5: 7521
A6: 3 | B6: 7396 | E6: -7396 | F6: -7396 | G6: 0 | H6: 7289 | K6: -7289 | L6: -7289 | M6: 0 | N6: 7360 | Q6: -7360 | R6: -7360 | S6: 0 | T6: 7498 | W6: -7498 | X6: -7498 | Y6: 0 | Z6: 7570.5 | AC6: -7570.5 | AD6: -7570.5 | AE6: 0 | AH6: 7396 | AI6: 7289 | AJ6: 7360 | AK6: 7498
A7: 4 | B7: 7409.5 | E7: -7409.5 | F7: -7409.5 | G7: 0 | H7: 7310 | K7: -7310 | L7: -7310 | M7: 0 | N7: 7373.5 | Q7: -7373.5 | R7: -7373.5 | S7: 0 | T7: 7508 | W7: -7508 | X7: -7508 | Y7: 0 | Z7: 7447 | AC7: -7447 | AD7: -7447 | AE7: 0 | AH7: 7409.5 | AI7: 7310 | AJ7: 7373.5 | AK7: 7508
A8: 5 | B8: 7380 | E8: -7380 | F8: -7380 | G8: 0 | H8: 7284 | K8: -7284 | L8: -7284 | M8: 0 | N8: 7358 | Q8: -7358 | R8: -7358 | S8: 0 | T8: 7489.5 | W8: -7489.5 | X8: -7489.5 | Y8: 0 | Z8: 7553 | AC8: -7553 | AD8: -7553 | AE8: 0 | AH8: 7380 | AI8: 7284 | AJ8: 7358 | AK8: 7489.5
A9: 6 | B9: 7363.5 | E9: -7363.5 | F9: -7363.5 | G9: 0 | H9: 7267.5 | K9: -7267.5 | L9: -7267.5 | M9: 0 | N9: 7341 | Q9: -7341 | R9: -7341 | S9: 0 | T9: 7469 | W9: -7469 | X9: -7469 | Y9: 0 | Z9: 7290 | AC9: -7290 | AD9: -7290 | AE9: 0 | AH9: 7363.5 | AI9: 7267.5 | AJ9: 7341 | AK9: 7469
A10: 7 | B10: 7343 | E10: -7343 | F10: -7343 | G10: 0 | H10: 7259.75 | K10: -7259.75 | L10: -7259.75 | M10: 0 | N10: 7321.5 | Q10: -7321.5 | R10: -7321.5 | S10: 0 | T10: 7459 | W10: -7459 | X10: -7459 | Y10: 0 | Z10: 7111 | AC10: -7111 | AD10: -7111 | AE10: 0 | AH10: 7343 | AI10: 7259.75 | AJ10: 7321.5 | AK10: 7459
A11: 8 | B11: 7353 | E11: -7353 | F11: -7353 | G11: 0 | H11: 7271.25 | K11: -7271.25 | L11: -7271.25 | M11: 0 | N11: 7328 | Q11: -7328 | R11: -7328 | S11: 0 | T11: 7441.5 | W11: -7441.5 | X11: -7441.5 | Y11: 0 | Z11: 7068 | AC11: -7068 | AD11: -7068 | AE11: 0 | AH11: 7353 | AI11: 7271.25 | AJ11: 7328 | AK11: 7441.5
A12: 9 | B12: 7263.5 | E12: -7263.5 | F12: -7263.5 | G12: 0 | H12: 7193.75 | K12: -7193.75 | L12: -7193.75 | M12: 0 | N12: 7259 | Q12: -7259 | R12: -7259 | S12: 0 | Z12: 6972 | AC12: -6972 | AD12: -6972 | AE12: 0 | AH12: 7263.5 | AI12: 7193.75 | AJ12: 7259
A13: 10 | B13: 7220 | E13: -7220 | F13: -7220 | G13: 0 | H13: 7157.5 | K13: -7157.5 | L13: -7157.5 | M13: 0 | N13: 7219 | Q13: -7219 | R13: -7219 | S13: 0 | Z13: 6936.5 | AC13: -6936.5 | AD13: -6936.5 | AE13: 0 | AH13: 7220 | AI13: 7157.5 | AJ13: 7219
A14: 11 | B14: 7116.5 | E14: -7116.5 | F14: -7116.5 | G14: 0 | H14: 7069.75 | K14: -7069.75 | L14: -7069.75 | M14: 0 | N14: 7130.5 | Q14: -7130.5 | R14: -7130.5 | S14: 0 | Z14: 6950.5 | AC14: -6950.5 | AD14: -6950.5 | AE14: 0 | AH14: 7116.5 | AI14: 7069.75 | AJ14: 7130.5
A15: 12 | B15: 7057.5 | E15: -7057.5 | F15: -7057.5 | G15: 0 | H15: 7016 | K15: -7016 | L15: -7016 | M15: 0 | N15: 7075.5 | Q15: -7075.5 | R15: -7075.5 | S15: 0 | AH15: 7057.5 | AI15: 7016 | AJ15: 7075.5
A16: 13 | B16: 7048 | E16: -7048 | F16: -7048 | G16: 0 | H16: 7018.25 | K16: -7018.25 | L16: -7018.25 | M16: 0 | N16: 7076 | Q16: -7076 | R16: -7076 | S16: 0 | AH16: 7048 | AI16: 7018.25 | AJ16: 7076
A17: 14 | B17: 6838 | E17: -6838 | F17: -6838 | G17: 0 | H17: 6791.25 | K17: -6791.25 | L17: -6791.25 | M17: 0 | N17: 6866 | Q17: -6866 | R17: -6866 | S17: 0 | AH17: 6838 | AI17: 6791.25 | AJ17: 6866
A18: 15 | B18: 6684.5 | E18: -6684.5 | F18: -6684.5 | G18: 0 | H18: 6709 | K18: -6709 | L18: -6709 | M18: 0 | N18: 6788 | Q18: -6788 | R18: -6788 | S18: 0 | AH18: 6684.5 | AI18: 6709 | AJ18: 6788
A19: 16
A20: 17
A21: 18
D23: RIGHT | H23: LEFT | M23: OFFSET | AB23: 20 | AD23: 10
C24: A | D24: X | E24: X | F24: X | G24: X | H24: X | I24: X | J24: AS+ | K24: 30 | M24: 0
C25: B | D25: X | E25: X | F25: X | G25: X | H25: X | I25: X | J25: AS | K25: 22
C26: C | D26: X | E26: X | F26: X | G26: X | H26: X | I26: X | J26: DL | K26: 15
